[Event "*** Titled Tuesday Blitz"]
[Site "Chess.com"]
[Date "2020.05.26"]
[Round "5"]
[White "MomchilPetkov"]
[Black "Angry_Twin"]
[Result "1/2-1/2"]
[WhiteElo "2546"]
[BlackElo "2822"]
[TimeControl "180+1"]
[EndTime "10:57:45 PDT"]
[Termination "Game drawn - insufficient material"]

1. d4 {[%clk 0:03:00.9]} 1... Nf6 {[%clk 0:02:57]} 2. c4 {[%clk 0:03:00.8]} 2...
g6 {[%clk 0:02:57.4]} 3. Nc3 {[%clk 0:03:01.1]} 3... d5 {[%clk 0:02:57.9]} 4.
cxd5 {[%clk 0:03:00.9]} 4... Nxd5 {[%clk 0:02:58.8]} 5. e4 {[%clk 0:03:01.1]}
5... Nxc3 {[%clk 0:02:59.3]} 6. bxc3 {[%clk 0:03:02]} 6... Bg7 {[%clk 0:03:00]}
7. Nf3 {[%clk 0:03:02.5]} 7... c5 {[%clk 0:03:00.7]} 8. Be3 {[%clk 0:03:02.8]}
8... Qa5 {[%clk 0:03:00.4]} 9. Qd2 {[%clk 0:03:01.9]} 9... O-O {[%clk
0:03:01.1]} 10. Rc1 {[%clk 0:03:00.5]} 10... Nd7 {[%clk 0:03:01.5]} 11. Bd3
{[%clk 0:02:34.3]} 11... e5 {[%clk 0:03:01.3]} 12. d5 {[%clk 0:02:23.9]} 12...
f6 {[%clk 0:03:01]} 13. O-O {[%clk 0:02:21.7]} 13... b5 {[%clk 0:03:00.1]} 14.
c4 {[%clk 0:02:19.2]} 14... b4 {[%clk 0:02:59.9]} 15. a3 {[%clk 0:01:55.5]}
15... Rb8 {[%clk 0:02:19.6]} 16. Ra1 {[%clk 0:01:54.3]} 16... Qc7 {[%clk
0:02:19.4]} 17. axb4 {[%clk 0:01:53.4]} 17... Rxb4 {[%clk 0:02:18.9]} 18. Rfb1
{[%clk 0:01:53.9]} 18... a5 {[%clk 0:02:16.9]} 19. Qc1 {[%clk 0:01:52.2]} 19...
f5 {[%clk 0:02:14.8]} 20. Bd2 {[%clk 0:01:50.9]} 20... Rxb1 {[%clk 0:02:15.1]}
21. Qxb1 {[%clk 0:01:50.5]} 21... fxe4 {[%clk 0:02:16]} 22. Bxe4 {[%clk
0:01:50.2]} 22... Nf6 {[%clk 0:02:16.7]} 23. Bxa5 {[%clk 0:01:48.7]} 23... Qe7
{[%clk 0:02:16.9]} 24. Nd2 {[%clk 0:01:43]} 24... Nxe4 {[%clk 0:02:12.9]} 25.
Nxe4 {[%clk 0:01:43.9]} 25... Bf5 {[%clk 0:02:13.5]} 26. f3 {[%clk 0:01:43.7]}
26... Bh6 {[%clk 0:02:11.8]} 27. Bc3 {[%clk 0:01:26.4]} 27... Be3+ {[%clk
0:02:06.6]} 28. Kh1 {[%clk 0:01:26.5]} 28... Bd4 {[%clk 0:02:07.5]} 29. Bxd4
{[%clk 0:01:10.9]} 29... exd4 {[%clk 0:02:08.4]} 30. Qg1 {[%clk 0:00:46.7]}
30... Bxe4 {[%clk 0:02:03.6]} 31. fxe4 {[%clk 0:00:43.9]} 31... Qxe4 {[%clk
0:02:02.6]} 32. Qe1 {[%clk 0:00:35.6]} 32... Re8 {[%clk 0:01:38.2]} 33. Qxe4
{[%clk 0:00:29.2]} 33... Rxe4 {[%clk 0:01:39.1]} 34. Kg1 {[%clk 0:00:29.5]}
34... d3 {[%clk 0:01:34.5]} 35. Rd1 {[%clk 0:00:26.2]} 35... Rd4 {[%clk
0:01:32]} 36. Kf2 {[%clk 0:00:25.3]} 36... Kf7 {[%clk 0:01:32.4]} 37. Ke3 {[%clk
0:00:25.6]} 37... Rxc4 {[%clk 0:01:29.9]} 38. Rxd3 {[%clk 0:00:25.7]} 38... Ke7
{[%clk 0:01:30.2]} 39. d6+ {[%clk 0:00:21.1]} 39... Kd7 {[%clk 0:01:30.3]} 40.
Rd5 {[%clk 0:00:20.9]} 40... Rc2 {[%clk 0:01:30.6]} 41. Kf3 {[%clk 0:00:21.2]}
41... c4 {[%clk 0:01:30.4]} 42. h4 {[%clk 0:00:20.8]} 42... c3 {[%clk
0:01:22.2]} 43. g3 {[%clk 0:00:20.9]} 43... Rc1 {[%clk 0:01:22.2]} 44. Kg4
{[%clk 0:00:21.2]} 44... Re1 {[%clk 0:01:15.8]} 45. Rc5 {[%clk 0:00:20.6]} 45...
Re3 {[%clk 0:01:15.2]} 46. Kf4 {[%clk 0:00:19.9]} 46... Rd3 {[%clk 0:01:15.6]}
47. g4 {[%clk 0:00:15.1]} 47... Kxd6 {[%clk 0:01:14.3]} 48. Rc8 {[%clk
0:00:15.5]} 48... Kd5 {[%clk 0:01:10.1]} 49. Kg5 {[%clk 0:00:15.4]} 49... Rh3
{[%clk 0:00:46.8]} 50. Rc7 {[%clk 0:00:13.1]} 50... Kd4 {[%clk 0:00:38.5]} 51.
Rd7+ {[%clk 0:00:10.7]} 51... Ke3 {[%clk 0:00:19.4]} 52. Rxh7 {[%clk 0:00:10.6]}
52... c2 {[%clk 0:00:19.8]} 53. Rc7 {[%clk 0:00:10.6]} 53... Kd2 {[%clk
0:00:19.9]} 54. Rxc2+ {[%clk 0:00:11]} 54... Kxc2 {[%clk 0:00:19.9]} 55. Kxg6
{[%clk 0:00:11.3]} 55... Rxh4 {[%clk 0:00:20.2]} 56. g5 {[%clk 0:00:11.9]} 56...
Kd3 {[%clk 0:00:20.5]} 57. Kf7 {[%clk 0:00:12.3]} 57... Rf4+ {[%clk 0:00:18.6]}
58. Ke6 {[%clk 0:00:11.9]} 58... Re4+ {[%clk 0:00:10.9]} 59. Kf6 {[%clk
0:00:11.9]} 59... Rf4+ {[%clk 0:00:10.5]} 60. Ke6 {[%clk 0:00:12.3]} 60... Ke4
{[%clk 0:00:06.3]} 61. g6 {[%clk 0:00:12.2]} 61... Rg4 {[%clk 0:00:06.9]} 62.
Kf7 {[%clk 0:00:11.5]} 62... Rf4+ {[%clk 0:00:05.4]} 63. Ke6 {[%clk 0:00:10.2]}
63... Rg4 {[%clk 0:00:05.3]} 64. Kf7 {[%clk 0:00:10.1]} 64... Ke5 {[%clk
0:00:05.5]} 65. g7 {[%clk 0:00:10.2]} 65... Rf4+ {[%clk 0:00:05.8]} 66. Ke7
{[%clk 0:00:10.7]} 66... Rg4 {[%clk 0:00:06]} 67. Kf7 {[%clk 0:00:11.1]} 67...
Kf5 {[%clk 0:00:05.8]} 68. g8=Q {[%clk 0:00:11.1]} 68... Rxg8 {[%clk 0:00:06.7]}
69. Kxg8 {[%clk 0:00:11.9]} 1/2-1/2

[Event "*** Titled Tuesday Blitz"]
[Site "Chess.com"]
[Date "2020.05.26"]
[Round "5"]
[White "WeAintSurePal"]
[Black "Machidon"]
[Result "0-1"]
[WhiteElo "2320"]
[BlackElo "2512"]
[TimeControl "180+1"]
[EndTime "10:57:48 PDT"]
[Termination "Machidon won by resignation"]

1. d4 {[%clk 0:03:00.9]} 1... Nf6 {[%clk 0:02:59]} 2. Nf3 {[%clk 0:02:59.2]}
2... g6 {[%clk 0:02:57.1]} 3. Bg5 {[%clk 0:02:59.5]} 3... Bg7 {[%clk 0:02:55.4]}
4. Nbd2 {[%clk 0:02:59.6]} 4... d5 {[%clk 0:02:55.4]} 5. e3 {[%clk 0:02:58.8]}
5... O-O {[%clk 0:02:55.5]} 6. c3 {[%clk 0:02:59.2]} 6... Nbd7 {[%clk 0:02:48]}
7. Be2 {[%clk 0:02:58.9]} 7... b6 {[%clk 0:02:48.6]} 8. O-O {[%clk 0:02:57.3]}
8... Bb7 {[%clk 0:02:49.2]} 9. a4 {[%clk 0:02:57.7]} 9... a6 {[%clk 0:02:46.1]}
10. h3 {[%clk 0:02:56.2]} 10... c5 {[%clk 0:02:45.6]} 11. Qb3 {[%clk 0:02:53.2]}
11... Re8 {[%clk 0:02:41.2]} 12. Rfd1 {[%clk 0:02:52.3]} 12... Rc8 {[%clk
0:02:29]} 13. Bf4 {[%clk 0:02:46.2]} 13... e6 {[%clk 0:02:10.3]} 14. Ne5 {[%clk
0:02:40.5]} 14... Bf8 {[%clk 0:02:01.2]} 15. Bg5 {[%clk 0:02:32.4]} 15... Be7
{[%clk 0:01:45.5]} 16. Nxd7 {[%clk 0:02:26.1]} 16... Nxd7 {[%clk 0:01:41.6]} 17.
Bxe7 {[%clk 0:02:25.3]} 17... Qxe7 {[%clk 0:01:41.6]} 18. Qa3 {[%clk 0:02:18.4]}
18... e5 {[%clk 0:01:36.2]} 19. dxe5 {[%clk 0:02:09.3]} 19... Qxe5 {[%clk
0:01:30.9]} 20. Bf3 {[%clk 0:02:05.3]} 20... Nf6 {[%clk 0:01:30.1]} 21. Nb3
{[%clk 0:01:59.3]} 21... a5 {[%clk 0:01:16]} 22. Nd2 {[%clk 0:01:58.2]} 22...
Re7 {[%clk 0:01:15.4]} 23. Qb3 {[%clk 0:01:54.7]} 23... Qc7 {[%clk 0:01:11.7]}
24. Qb5 {[%clk 0:01:49.8]} 24... h5 {[%clk 0:01:05.9]} 25. Qe2 {[%clk
0:01:32.1]} 25... Rce8 {[%clk 0:00:59.3]} 26. Qd3 {[%clk 0:01:30.9]} 26... h4
{[%clk 0:00:56.2]} 27. Rac1 {[%clk 0:01:28.4]} 27... Bc6 {[%clk 0:00:52.5]} 28.
Qc2 {[%clk 0:01:25.7]} 28... g5 {[%clk 0:00:37.3]} 29. Qf5 {[%clk 0:01:20.7]}
29... Qe5 {[%clk 0:00:36.1]} 30. Qxe5 {[%clk 0:01:18.3]} 30... Rxe5 {[%clk
0:00:37]} 31. Nc4 {[%clk 0:01:15.3]} 31... Bxa4 {[%clk 0:00:23.4]} 32. Nxe5
{[%clk 0:00:43]} 32... Bxd1 {[%clk 0:00:23.1]} 33. Ng4 {[%clk 0:00:29]} 33...
Nxg4 {[%clk 0:00:23.1]} 34. Rxd1 {[%clk 0:00:27.2]} 34... Ne5 {[%clk 0:00:23]}
35. Bxd5 {[%clk 0:00:26.5]} 35... Rd8 {[%clk 0:00:22.2]} 36. f4 {[%clk
0:00:20.6]} 36... gxf4 {[%clk 0:00:11.9]} 37. exf4 {[%clk 0:00:21.5]} 37... Ng6
{[%clk 0:00:11.8]} 38. Bxf7+ {[%clk 0:00:20.7]} 38... Kxf7 {[%clk 0:00:12.7]}
39. Rxd8 {[%clk 0:00:20.8]} 39... Nxf4 {[%clk 0:00:12.7]} 40. Rd6 {[%clk
0:00:20.7]} 40... b5 {[%clk 0:00:11.3]} 41. Rc6 {[%clk 0:00:20.7]} 41... Nd3
{[%clk 0:00:10.4]} 42. Rb6 {[%clk 0:00:20.6]} 42... b4 {[%clk 0:00:10.3]} 43.
cxb4 {[%clk 0:00:19.8]} 43... axb4 {[%clk 0:00:11.2]} 44. b3 {[%clk 0:00:19.3]}
44... Ke7 {[%clk 0:00:11.7]} 45. Rc6 {[%clk 0:00:19]} 45... Kd7 {[%clk 0:00:11]}
46. Rh6 {[%clk 0:00:19.4]} 46... Nc1 {[%clk 0:00:11.2]} 47. Rxh4 {[%clk
0:00:19.8]} 47... Nxb3 {[%clk 0:00:11.5]} 48. Rc4 {[%clk 0:00:19.8]} 48... Kd6
{[%clk 0:00:11.3]} 49. h4 {[%clk 0:00:19.3]} 49... Kd5 {[%clk 0:00:11.3]} 50.
Rc2 {[%clk 0:00:19]} 50... Nd4 {[%clk 0:00:11.3]} 51. Rd2 {[%clk 0:00:18.9]}
51... c4 {[%clk 0:00:11.8]} 52. h5 {[%clk 0:00:18.2]} 52... c3 {[%clk
0:00:12.3]} 53. Rd1 {[%clk 0:00:16.8]} 53... c2 {[%clk 0:00:12.4]} 54. Re1
{[%clk 0:00:15.3]} 54... b3 {[%clk 0:00:06.5]} 55. h6 {[%clk 0:00:15.3]} 55...
b2 {[%clk 0:00:06]} 56. h7 {[%clk 0:00:15.2]} 56... c1=Q {[%clk 0:00:06.3]} 57.
Kf2 {[%clk 0:00:11.4]} 57... Qxe1+ {[%clk 0:00:06]} 58. Kxe1 {[%clk 0:00:09.7]}
58... b1=Q+ {[%clk 0:00:06.9]} 59. Kf2 {[%clk 0:00:10.6]} 59... Qxh7 {[%clk
0:00:07.4]} 60. g3 {[%clk 0:00:10.8]} 60... Qf7+ {[%clk 0:00:08.3]} 61. Kg1
{[%clk 0:00:10.8]} 61... Qe6 {[%clk 0:00:09.2]} 62. Kh2 {[%clk 0:00:11]} 62...
Qe2+ {[%clk 0:00:09.7]} 63. Kh3 {[%clk 0:00:11.2]} 63... Qh5+ {[%clk 0:00:10.2]}
64. Kg2 {[%clk 0:00:10.6]} 64... Nf5 {[%clk 0:00:11.1]} 65. Kf2 {[%clk
0:00:10.3]} 65... Qg4 {[%clk 0:00:11.3]} 66. Ke1 {[%clk 0:00:09.9]} 66... Qxg3+
{[%clk 0:00:11.6]} 67. Kd2 {[%clk 0:00:10.8]} 67... Qg2+ {[%clk 0:00:11.8]} 0-1

[Event "*** Titled Tuesday Blitz"]
[Site "Chess.com"]
[Date "2020.05.26"]
[Round "5"]
[White "Bulldog167"]
[Black "GmSergioBarrientos"]
[Result "0-1"]
[WhiteElo "2762"]
[BlackElo "2623"]
[TimeControl "180+1"]
[EndTime "10:57:49 PDT"]
[Termination "GmSergioBarrientos won on time"]

1. e4 {[%clk 0:03:00.9]} 1... c5 {[%clk 0:02:59.7]} 2. Nf3 {[%clk 0:03:01.2]}
2... d6 {[%clk 0:02:59.6]} 3. d4 {[%clk 0:02:58]} 3... Nf6 {[%clk 0:02:59.4]} 4.
Nc3 {[%clk 0:02:57.5]} 4... cxd4 {[%clk 0:02:59.5]} 5. Nxd4 {[%clk 0:02:58.4]}
5... g6 {[%clk 0:02:59.2]} 6. Be2 {[%clk 0:02:54.2]} 6... Bg7 {[%clk 0:02:58.5]}
7. O-O {[%clk 0:02:54.5]} 7... O-O {[%clk 0:02:58.3]} 8. Be3 {[%clk 0:02:54.3]}
8... Nc6 {[%clk 0:02:58.1]} 9. Nb3 {[%clk 0:02:47.5]} 9... a5 {[%clk 0:02:54.7]}
10. a3 {[%clk 0:02:42.2]} 10... Be6 {[%clk 0:02:52]} 11. Nd4 {[%clk 0:02:40.1]}
11... Nxd4 {[%clk 0:02:49.7]} 12. Bxd4 {[%clk 0:02:39.7]} 12... Rc8 {[%clk
0:02:33.8]} 13. Qd2 {[%clk 0:02:17.4]} 13... Bc4 {[%clk 0:02:26.5]} 14. Rfe1
{[%clk 0:02:05.9]} 14... Bxe2 {[%clk 0:02:22]} 15. Rxe2 {[%clk 0:02:06.8]} 15...
Qd7 {[%clk 0:02:12.1]} 16. Rd1 {[%clk 0:01:54.9]} 16... Qe6 {[%clk 0:01:44.8]}
17. Qd3 {[%clk 0:01:47.7]} 17... Qc4 {[%clk 0:01:38.9]} 18. Bxf6 {[%clk
0:01:33.9]} 18... Bxf6 {[%clk 0:01:33.3]} 19. Nd5 {[%clk 0:01:32.3]} 19... Kg7
{[%clk 0:01:28.3]} 20. c3 {[%clk 0:01:07.9]} 20... Qxd3 {[%clk 0:01:23.8]} 21.
Rxd3 {[%clk 0:01:08.8]} 21... Rfe8 {[%clk 0:01:20.8]} 22. f3 {[%clk 0:00:58.8]}
22... Rc6 {[%clk 0:01:17.4]} 23. a4 {[%clk 0:00:54.8]} 23... e6 {[%clk
0:01:13.2]} 24. Ne3 {[%clk 0:00:48.2]} 24... Rb8 {[%clk 0:00:57.9]} 25. c4
{[%clk 0:00:44.4]} 25... g5 {[%clk 0:00:49.4]} 26. b3 {[%clk 0:00:43.9]} 26...
h5 {[%clk 0:00:48.2]} 27. h3 {[%clk 0:00:42.6]} 27... Be5 {[%clk 0:00:46.6]} 28.
Kf1 {[%clk 0:00:40.8]} 28... Kf6 {[%clk 0:00:41.8]} 29. Kf2 {[%clk 0:00:40.7]}
29... Rg8 {[%clk 0:00:39.1]} 30. Red2 {[%clk 0:00:40]} 30... Ke7 {[%clk
0:00:39.1]} 31. Rd1 {[%clk 0:00:38.2]} 31... Bf4 {[%clk 0:00:39]} 32. Nc2 {[%clk
0:00:36.6]} 32... g4 {[%clk 0:00:33.4]} 33. hxg4 {[%clk 0:00:35]} 33... hxg4
{[%clk 0:00:34.3]} 34. g3 {[%clk 0:00:34.6]} 34... gxf3 {[%clk 0:00:29.3]} 35.
gxf4 {[%clk 0:00:28.9]} 35... Rg2+ {[%clk 0:00:29.2]} 36. Kxf3 {[%clk
0:00:29.5]} 36... Rxc2 {[%clk 0:00:30.1]} 37. e5 {[%clk 0:00:30.1]} 37... dxe5
{[%clk 0:00:28.7]} 38. fxe5 {[%clk 0:00:31]} 38... Rc7 {[%clk 0:00:26]} 39. Rh1
{[%clk 0:00:27]} 39... Rb2 {[%clk 0:00:23.2]} 40. Ke3 {[%clk 0:00:22.4]} 40...
Rd7 {[%clk 0:00:23.2]} 41. Rhd1 {[%clk 0:00:21.6]} 41... Rxd3+ {[%clk 0:00:23]}
42. Rxd3 {[%clk 0:00:22.5]} 42... Rb1 {[%clk 0:00:23.7]} 43. Kd4 {[%clk
0:00:22.1]} 43... Re1 {[%clk 0:00:19.5]} 44. Rh3 {[%clk 0:00:08.7]} 44... Rd1+
{[%clk 0:00:18.6]} 45. Kc5 {[%clk 0:00:08.6]} 45... Re1 {[%clk 0:00:18.6]} 46.
Rh5 {[%clk 0:00:08.1]} 46... Re3 {[%clk 0:00:17.8]} 47. b4 {[%clk 0:00:08.6]}
47... axb4 {[%clk 0:00:16.5]} 48. Kxb4 {[%clk 0:00:09.5]} 48... b6 {[%clk
0:00:16.1]} 49. Rg5 {[%clk 0:00:06.6]} 49... Re1 {[%clk 0:00:13.6]} 50. Kb5
{[%clk 0:00:05.6]} 50... Rb1+ {[%clk 0:00:13.6]} 51. Kc6 {[%clk 0:00:06.1]}
51... Rb4 {[%clk 0:00:13.9]} 52. Rg4 {[%clk 0:00:05.9]} 52... Kf8 {[%clk
0:00:12.2]} 53. Kb7 {[%clk 0:00:03.4]} 53... f5 {[%clk 0:00:10.9]} 54. exf6
{[%clk 0:00:03.7]} 54... Kf7 {[%clk 0:00:11.3]} 55. Ka6 {[%clk 0:00:04.3]} 55...
Kxf6 {[%clk 0:00:11.4]} 56. a5 {[%clk 0:00:04.4]} 56... bxa5 {[%clk 0:00:11.2]}
57. Kxa5 {[%clk 0:00:05.3]} 57... Rb1 {[%clk 0:00:11.8]} 58. c5 {[%clk
0:00:05.7]} 58... Ke5 {[%clk 0:00:12]} 59. Rb4 {[%clk 0:00:03.9]} 59... Rc1
{[%clk 0:00:11.1]} 60. Kb6 {[%clk 0:00:03.8]} 60... Kd5 {[%clk 0:00:11.3]} 61.
Rb5 {[%clk 0:00:04.2]} 61... e5 {[%clk 0:00:10.8]} 62. c6+ {[%clk 0:00:04]}
62... Kd6 {[%clk 0:00:11.2]} 63. c7 {[%clk 0:00:04.3]} 63... Rc6+ {[%clk
0:00:10.6]} 64. Kb7 {[%clk 0:00:04.1]} 64... Rxc7+ {[%clk 0:00:10.8]} 65. Kb6
{[%clk 0:00:05]} 65... Rc1 {[%clk 0:00:11]} 66. Rb2 {[%clk 0:00:05.2]} 66... e4
{[%clk 0:00:10.8]} 67. Rc2 {[%clk 0:00:05.1]} 67... Rxc2 {[%clk 0:00:10.2]} 0-1

[Event "*** Titled Tuesday Blitz"]
[Site "Chess.com"]
[Date "2020.05.26"]
[Round "5"]
[White "Spartakus1975"]
[Black "atalz0"]
[Result "1-0"]
[WhiteElo "2689"]
[BlackElo "2341"]
[TimeControl "180+1"]
[EndTime "10:57:49 PDT"]
[Termination "Spartakus1975 won by resignation"]

1. e4 {[%clk 0:03:00.9]} 1... d5 {[%clk 0:02:59.4]} 2. exd5 {[%clk 0:02:58.5]}
2... Nf6 {[%clk 0:02:59.6]} 3. Nf3 {[%clk 0:02:57.1]} 3... Nxd5 {[%clk
0:02:59.7]} 4. d4 {[%clk 0:02:54.3]} 4... Bg4 {[%clk 0:02:59.6]} 5. c4 {[%clk
0:02:53.6]} 5... Nb6 {[%clk 0:02:59.1]} 6. Nc3 {[%clk 0:02:50.7]} 6... e5 {[%clk
0:02:58.2]} 7. d5 {[%clk 0:02:14.5]} 7... Bb4 {[%clk 0:02:57]} 8. Bd2 {[%clk
0:02:08.1]} 8... O-O {[%clk 0:02:47.5]} 9. h3 {[%clk 0:02:02.9]} 9... Bxf3
{[%clk 0:02:08]} 10. Qxf3 {[%clk 0:02:00.9]} 10... c6 {[%clk 0:02:08.2]} 11. a3
{[%clk 0:01:44.1]} 11... Bxc3 {[%clk 0:02:02.2]} 12. Bxc3 {[%clk 0:01:44]} 12...
cxd5 {[%clk 0:02:01.8]} 13. cxd5 {[%clk 0:01:43.9]} 13... Qxd5 {[%clk
0:01:50.1]} 14. Be2 {[%clk 0:01:19.9]} 14... Nc6 {[%clk 0:01:31.6]} 15. Rd1
{[%clk 0:01:10.3]} 15... Qxf3 {[%clk 0:01:11.2]} 16. Bxf3 {[%clk 0:01:10.2]}
16... Rad8 {[%clk 0:01:06.2]} 17. O-O {[%clk 0:01:01.8]} 17... Na4 {[%clk
0:00:50.5]} 18. Bxc6 {[%clk 0:00:44]} 18... Nxc3 {[%clk 0:00:47.9]} 19. Rxd8
{[%clk 0:00:37.9]} 19... Rxd8 {[%clk 0:00:42.2]} 20. Bxb7 {[%clk 0:00:37.4]}
20... Ne2+ {[%clk 0:00:41.7]} 21. Kh2 {[%clk 0:00:37.4]} 21... Rb8 {[%clk
0:00:40.6]} 22. Re1 {[%clk 0:00:32.9]} 22... Rxb7 {[%clk 0:00:30.9]} 23. Rxe2
{[%clk 0:00:32.8]} 23... f6 {[%clk 0:00:30.4]} 24. Rc2 {[%clk 0:00:33.1]} 24...
a5 {[%clk 0:00:26.1]} 25. Kg3 {[%clk 0:00:31.2]} 25... Kf7 {[%clk 0:00:25]} 26.
Kf3 {[%clk 0:00:30.8]} 26... Ke6 {[%clk 0:00:24.6]} 27. Ke2 {[%clk 0:00:30.9]}
27... Kd5 {[%clk 0:00:22.3]} 28. Kd2 {[%clk 0:00:29.1]} 28... h5 {[%clk
0:00:20.3]} 29. Kc1 {[%clk 0:00:27.8]} 29... g5 {[%clk 0:00:18.2]} 30. Rd2+
{[%clk 0:00:27.8]} 30... Ke6 {[%clk 0:00:17.1]} 31. Kc2 {[%clk 0:00:27.8]} 31...
h4 {[%clk 0:00:16.9]} 32. Kc3 {[%clk 0:00:25.2]} 32... Rb6 {[%clk 0:00:10.8]}
33. b4 {[%clk 0:00:24.6]} 33... axb4+ {[%clk 0:00:10.5]} 34. axb4 {[%clk
0:00:25.2]} 34... Rb8 {[%clk 0:00:09.5]} 35. Kc4 {[%clk 0:00:25.1]} 35... Rc8+
{[%clk 0:00:08.5]} 36. Kb3 {[%clk 0:00:25.2]} 36... Rb8 {[%clk 0:00:08.4]} 37.
Ra2 {[%clk 0:00:22.6]} 37... Kd5 {[%clk 0:00:05.9]} 38. Rd2+ {[%clk 0:00:18]}
38... Ke4 {[%clk 0:00:05.5]} 39. Rd6 {[%clk 0:00:16.4]} 39... f5 {[%clk
0:00:05.2]} 40. Kc4 {[%clk 0:00:16.4]} 40... Rc8+ {[%clk 0:00:04.3]} 41. Kb3
{[%clk 0:00:16.2]} 41... Rb8 {[%clk 0:00:03.2]} 42. Rc6 {[%clk 0:00:15.4]} 42...
g4 {[%clk 0:00:02.7]} 43. Kc4 {[%clk 0:00:14.5]} 43... gxh3 {[%clk 0:00:02.3]}
44. gxh3 {[%clk 0:00:14.6]} 44... Kf4 {[%clk 0:00:02.7]} 45. b5 {[%clk
0:00:14.3]} 45... e4 {[%clk 0:00:02.8]} 46. Rf6 {[%clk 0:00:10.1]} 46... Ke5
{[%clk 0:00:02.3]} 47. Rf7 {[%clk 0:00:09.7]} 47... Rc8+ {[%clk 0:00:02.3]} 48.
Kb4 {[%clk 0:00:09.7]} 48... f4 {[%clk 0:00:02.6]} 49. b6 {[%clk 0:00:09.8]}
49... Rb8 {[%clk 0:00:02.6]} 50. Kb5 {[%clk 0:00:10]} 50... e3 {[%clk
0:00:03.1]} 51. fxe3 {[%clk 0:00:08.5]} 51... fxe3 {[%clk 0:00:04]} 52. Re7+
{[%clk 0:00:07.8]} 52... Kf4 {[%clk 0:00:04.2]} 53. Kc6 {[%clk 0:00:07.9]} 53...
Kf3 {[%clk 0:00:04.3]} 54. Kc7 {[%clk 0:00:08.2]} 54... Rxb6 {[%clk 0:00:04.5]}
55. Kxb6 {[%clk 0:00:08.3]} 55... e2 {[%clk 0:00:04.9]} 56. Kc5 {[%clk
0:00:08.4]} 56... Kf2 {[%clk 0:00:05.4]} 57. Kd4 {[%clk 0:00:08.6]} 57... e1=Q
{[%clk 0:00:05.9]} 58. Rxe1 {[%clk 0:00:08.8]} 58... Kxe1 {[%clk 0:00:06.8]} 59.
Ke3 {[%clk 0:00:09.4]} 59... Kf1 {[%clk 0:00:06.6]} 60. Kf3 {[%clk 0:00:09.6]}
60... Kg1 {[%clk 0:00:04.5]} 61. Kg4 {[%clk 0:00:10]} 61... Kf2 {[%clk
0:00:04.3]} 62. Kxh4 {[%clk 0:00:10.5]} 62... Kf3 {[%clk 0:00:04.2]} 63. Kg5
{[%clk 0:00:10.8]} 63... Ke4 {[%clk 0:00:04.5]} 64. h4 {[%clk 0:00:11.2]} 64...
Ke5 {[%clk 0:00:04.9]} 65. h5 {[%clk 0:00:11.5]} 65... Ke6 {[%clk 0:00:05.3]}
66. Kg6 {[%clk 0:00:12.1]} 66... Ke7 {[%clk 0:00:05.7]} 67. Kg7 {[%clk
0:00:12.5]} 1-0

[Event "*** Titled Tuesday Blitz"]
[Site "Chess.com"]
[Date "2020.05.26"]
[Round "5"]
[White "fridaywins"]
[Black "Onwgs"]
[Result "0-1"]
[WhiteElo "2242"]
[BlackElo "2480"]
[TimeControl "180+1"]
[EndTime "10:57:51 PDT"]
[Termination "Onwgs won by resignation"]

1. e4 {[%clk 0:02:32.7]} 1... e5 {[%clk 0:02:59.3]} 2. Nf3 {[%clk 0:02:32]} 2...
Nc6 {[%clk 0:02:59.2]} 3. Bb5 {[%clk 0:02:32]} 3... a6 {[%clk 0:02:59.5]} 4. Ba4
{[%clk 0:02:32.2]} 4... Nf6 {[%clk 0:02:59.9]} 5. O-O {[%clk 0:02:32.7]} 5...
Be7 {[%clk 0:03:00.3]} 6. Re1 {[%clk 0:02:30.7]} 6... b5 {[%clk 0:03:00.5]} 7.
Bb3 {[%clk 0:02:30.9]} 7... d6 {[%clk 0:03:00.9]} 8. c3 {[%clk 0:02:30.9]} 8...
O-O {[%clk 0:03:01]} 9. h3 {[%clk 0:02:31]} 9... Nb8 {[%clk 0:03:01.2]} 10. d4
{[%clk 0:02:29.2]} 10... Nbd7 {[%clk 0:03:01.3]} 11. Nbd2 {[%clk 0:02:28.9]}
11... Bb7 {[%clk 0:03:01.6]} 12. Bc2 {[%clk 0:02:26.9]} 12... Re8 {[%clk
0:03:01.9]} 13. Nf1 {[%clk 0:02:26.8]} 13... Bf8 {[%clk 0:03:02.1]} 14. Ng3
{[%clk 0:02:26.7]} 14... g6 {[%clk 0:03:02.2]} 15. a4 {[%clk 0:02:23.3]} 15...
c6 {[%clk 0:03:01.7]} 16. axb5 {[%clk 0:02:20.9]} 16... axb5 {[%clk 0:03:01.3]}
17. Rxa8 {[%clk 0:02:15.6]} 17... Qxa8 {[%clk 0:03:02.2]} 18. dxe5 {[%clk
0:02:16.3]} 18... Nxe5 {[%clk 0:03:01.3]} 19. Nxe5 {[%clk 0:02:13.9]} 19... dxe5
{[%clk 0:03:02.2]} 20. Bg5 {[%clk 0:02:07.9]} 20... Bg7 {[%clk 0:03:02.2]} 21.
Qf3 {[%clk 0:02:06.2]} 21... Qd8 {[%clk 0:02:54.2]} 22. Rd1 {[%clk 0:02:01.3]}
22... Qe7 {[%clk 0:02:54.2]} 23. h4 {[%clk 0:02:00]} 23... h6 {[%clk 0:02:49.9]}
24. Be3 {[%clk 0:01:59.8]} 24... Bc8 {[%clk 0:02:49.4]} 25. Qe2 {[%clk
0:01:54.7]} 25... Ng4 {[%clk 0:02:49.1]} 26. h5 {[%clk 0:01:49.8]} 26... Qh4
{[%clk 0:02:48.3]} 27. hxg6 {[%clk 0:01:43.4]} 27... fxg6 {[%clk 0:02:48.5]} 28.
Nf1 {[%clk 0:01:41.5]} 28... Be6 {[%clk 0:02:44.4]} 29. f3 {[%clk 0:01:39.8]}
29... Nxe3 {[%clk 0:02:41.3]} 30. Qxe3 {[%clk 0:01:39.3]} 30... Rd8 {[%clk
0:02:38.7]} 31. Rxd8+ {[%clk 0:01:38.2]} 31... Qxd8 {[%clk 0:02:39.6]} 32. Nd2
{[%clk 0:01:34.2]} 32... Kh7 {[%clk 0:02:37.6]} 33. Bb3 {[%clk 0:01:34]} 33...
Bc8 {[%clk 0:02:34.2]} 34. Nf1 {[%clk 0:01:27.7]} 34... Bf6 {[%clk 0:02:32.5]}
35. Qa7+ {[%clk 0:01:24.7]} 35... Qe7 {[%clk 0:02:27.5]} 36. Qb8 {[%clk
0:01:21.1]} 36... Qd7 {[%clk 0:02:16.9]} 37. Nh2 {[%clk 0:01:18.6]} 37... h5
{[%clk 0:02:13.9]} 38. Nf1 {[%clk 0:01:16]} 38... Be7 {[%clk 0:02:11.7]} 39.
Qxe5 {[%clk 0:01:12.3]} 39... Bd6 {[%clk 0:02:05.1]} 40. Qd4 {[%clk 0:01:06.1]}
40... Qe7 {[%clk 0:02:04.4]} 41. Qd2 {[%clk 0:00:58.4]} 41... Bc5+ {[%clk
0:02:03.7]} 42. Kh1 {[%clk 0:00:56.2]} 42... Qh4+ {[%clk 0:02:03.1]} 43. Nh2
{[%clk 0:00:55.9]} 43... Bf2 {[%clk 0:02:01.8]} 44. g4 {[%clk 0:00:32.9]} 44...
hxg4 {[%clk 0:01:55.7]} 45. fxg4 {[%clk 0:00:27.9]} 45... Bxg4 {[%clk
0:01:55.6]} 46. Qf4 {[%clk 0:00:22.5]} 46... Bg3 {[%clk 0:01:34.3]} 47. Qf7+
{[%clk 0:00:22.1]} 47... Kh6 {[%clk 0:01:33.9]} 48. Qf8+ {[%clk 0:00:21.8]}
48... Kh5 {[%clk 0:01:31.7]} 49. Qh8+ {[%clk 0:00:21.4]} 49... Kg5 {[%clk
0:01:32]} 50. Qd8+ {[%clk 0:00:20.5]} 50... Kf4 {[%clk 0:01:28.3]} 51. Qd6+
{[%clk 0:00:19.6]} 51... Ke3 {[%clk 0:01:09.5]} 52. Qd4+ {[%clk 0:00:17.2]}
52... Kf4 {[%clk 0:01:08.6]} 53. Qd6+ {[%clk 0:00:15.7]} 53... Ke3 {[%clk
0:00:29.8]} 54. Qd4+ {[%clk 0:00:14.7]} 54... Ke2 {[%clk 0:00:29.4]} 55. Qd1+
{[%clk 0:00:12.7]} 55... Kf2 {[%clk 0:00:22.9]} 56. Qg1+ {[%clk 0:00:11.4]}
56... Ke2 {[%clk 0:00:18.1]} 57. Bd1+ {[%clk 0:00:11.8]} 57... Kd2 {[%clk
0:00:15.7]} 58. Qd4+ {[%clk 0:00:10.2]} 58... Kc1 {[%clk 0:00:12.4]} 59. Qe3+
{[%clk 0:00:09.8]} 59... Kxd1 {[%clk 0:00:11.3]} 60. Qd3+ {[%clk 0:00:09.1]}
60... Kc1 {[%clk 0:00:11.6]} 61. Qe3+ {[%clk 0:00:08.4]} 61... Kc2 {[%clk
0:00:11.7]} 62. Qg1 {[%clk 0:00:04.8]} 62... Bf3+ {[%clk 0:00:11.2]} 63. Qg2+
{[%clk 0:00:03.6]} 63... Bxg2+ {[%clk 0:00:12.1]} 64. Kxg2 {[%clk 0:00:04.5]}
64... Qxh2+ {[%clk 0:00:13]} 0-1